Workbook

Sheet Калькулятор
F2: Дата розрахунку | L2: Орієнтовний графік
F3: =TODAY() -> 2022-02-18
L4: =PMT($M$4,$C$14,-C12) -> 38382.43081 | M4: 0.01101240472 | N4: =INDIRECT("Калькулятор!Q"&6+C14) -> -3.53102223e-08
B5: Параметри кредиту* | F5: Супровідні послуги третіх осіб | I5: Результат розрахунків: ** | L5: Період | M5: Дата платежу | N5: Погашення по тілу кредита | O5: Проценти по кредиту | P5: Щомісячний платіж | Q5: Залишок тіла кредиту
L6: 0 | M6: =TODAY() -> 2022-02-18 | N6: =SUM(N7:N366) -> 3000000 | O6: =SUM(O7:O366) -> 3908837.546 | P6: =-C12+(C8-C10)*C23+G8+G10+G12+G14+G16 -> -2902085.714 | Q6: =C12 -> 3000000
K7: 1 | L7: =IF(K7>$C$14,"",K7) -> 1 | M7: =IF(L7<=$C$14,EDATE($M$6,L7),"") -> 2022-03-18 | N7: =IF(M7="","", IF($C$26="Стандарт",$C$12/$C$14,P7-O7)) -> 4657.430809 | O7: =IF(L7<=$C$14,Q6*R7/12,"") -> 33725 | P7: =IF(M7="","", IF($C$26="Стандарт",N7+O7,$L$4 )) -> 38382.43081 | Q7: =IF(M7="","",Q6-N7) -> 2995342.569 | R7: =IF(L7>$C$14,"", IF(L7>$C$34,$C$18,$C$16)) -> 0.1349
B8: Вартість нерухомості, грн | C8: 4285714.29 | F8: Страхування майна (предмету іпотеки), щорічно, грн | G8: =0.3%*C8 -> 12857.14287 | I8: Платіж в першому місяці, грн | J8: =P7 -> 38382.43081 | K8: 2 | L8: 2 | M8: 2022-04-18 | N8: =IF(M8="","", IF($C$26="Стандарт",$C$12/$C$14,P8-IF(MOD(L8,12)=1,$G$8+$G$10,0)-O8)) -> 4709.788094 | O8: 33672.64272 | P8: =IF(M8="","", IF($C$26="Стандарт",N8+O8+IF(MOD(L8,12)=1,$G$8+$G$10,0),$L$4+IF(MOD(L8,12)=1,$G$8+$G$10,0) )) -> 38382.43081 | Q8: 2990632.781 | R8: 0.1349
K9: 3 | L9: 3 | M9: 2022-05-18 | N9: 4762.733962 | O9: 33619.69685 | P9: 38382.43081 | Q9: 2985870.047 | R9: 0.1349
B10: Авансовий платіж (перший внесок) | C10: 1285714.29 | D10: =C10/C8 -> 0.3000000007 | F10: Страхування від нещасного випадку Позичальника, грн | G10: =0%*C12 -> 0 | I10: Загальні витрати по кредиту, грн | J10: =O6+C23*(C8-C10)+G8*C14/12+G10+G12+G14 -> 4143894.689 | K10: 4 | L10: 4 | M10: 2022-06-18 | N10: 4816.275029 | O10: 33566.15578 | P10: 38382.43081 | Q10: 2981053.772 | R10: 0.1349
B11: =IF(C11="","","Помилка:") ->  | C11: =IF(D10<30%,"Некоректний мінімальний аванс","") ->  | K11: 5 | L11: 5 | M11: 2022-07-18 | N11: 4870.417988 | O11: 33512.01282 | P11: 38382.43081 | Q11: 2976183.354 | R11: 0.1349
B12: Сума кредиту, грн | C12: =C8-C10+IF(D23="В кредит",C23*(C8-C10),0) -> 3000000 | F12: Послуги оцінювача, грн. | G12: 2500 | I12: Загальна вартість кредиту, грн | J12: =C12+G8*C14/12+G10+G12+G14+O6+IF(D23="В кредит",0,C23*(C8-C10)) -> 7143894.689 | K12: 6 | L12: 6 | M12: 2022-08-18 | N12: 4925.169603 | O12: 33457.26121 | P12: 38382.43081 | Q12: 2971258.185 | R12: 0.1349
B13: =IF(C13="","","Помилка:") ->  | C13: =IF(OR(C12<300000,C12>3000000),"Сума кредиту від 300 000 до 3 000 000 грн","") ->  | K13: 7 | L13: 7 | M13: 2022-09-18 | N13: 4980.536718 | O13: 33401.89409 | P13: 38382.43081 | Q13: 2966277.648 | R13: 0.1349
B14: Строк кредиту, міс | C14: 180 | F14: Послуги нотаріуса, разово, грн | G14: 10000 | I14: Реальна річна процентна ставка | J14: =XIRR(P6:OFFSET(P6,C14,0),M6:OFFSET(M6,C14,0)) -> 0.153458041 | K14: 8 | L14: 8 | M14: 2022-10-18 | N14: 5036.526252 | O14: 33345.90456 | P14: 38382.43081 | Q14: 2961241.122 | R14: 0.1349
K15: 9 | L15: 9 | M15: 2022-11-18 | N15: 5093.145201 | O15: 33289.28561 | P15: 38382.43081 | Q15: 2956147.976 | R15: 0.1349
B16: Процентна ставка, перші 3 роки, % річних | C16: 0.1349 | F16: Збори на обов’язкове пенсійне страхування, грн | G16: =1%*C8 -> 42857.1429 | K16: 10 | L16: 10 | M16: 2022-12-18 | N16: 5150.400642 | O16: 33232.03017 | P16: 38382.43081 | Q16: 2950997.576 | R16: 0.1349
K17: 11 | L17: 11 | M17: 2023-01-18 | N17: 5208.299729 | O17: 33174.13108 | P17: 38382.43081 | Q17: 2945789.276 | R17: 0.1349
B18: Процентна ставка, з 4-го року, % річних : | C18: =C19+C20 -> 0.1298 | I18: Для розрахунку нажміть клавішу "Розрахунок графіку" | K18: 12 | L18: 12 | M18: 2023-02-18 | N18: 5266.849699 | O18: 33115.58111 | P18: 38382.43081 | Q18: 2940522.426 | R18: 0.1349
B19: UIRD 12M (змінювана) | C19: 0.0898 | K19: 13 | L19: 13 | M19: 2023-03-18 | N19: 5326.057867 | O19: 33056.37294 | P19: =IF(M19="","", IF($C$26="Стандарт",N19+O19+IF(MOD(L19,12)=1,$G$8+$G$10,0),$L$4+IF(MOD(L19,12)=1,$G$8+$G$10,0) )) -> 51239.57368 | Q19: 2935196.368 | R19: 0.1349
B20: Маржа (фіксована) | C20: 0.04 | K20: 14 | L20: 14 | M20: 2023-04-18 | N20: 5385.931635 | O20: 32996.49917 | P20: 38382.43081 | Q20: 2929810.437 | R20: 0.1349
B21: Актуальне значення UIRD 12M UAH (12 місяців) можна переглянути за посиланням та використати для розрахунку | K21: 15 | L21: 15 | M21: 2023-05-18 | N21: 5446.478483 | O21: 32935.95233 | P21: 38382.43081 | Q21: 2924363.958 | R21: 0.1349
K22: 16 | L22: 16 | M22: 2023-06-18 | N22: 5507.705978 | O22: 32874.72483 | P22: 38382.43081 | Q22: 2918856.252 | R22: 0.1349
B23: Разова комісія | C23: 0.0099 | D23: Оплата самостійно | K23: 17 | L23: 17 | M23: 2023-07-18 | N23: 5569.621773 | O23: 32812.80904 | P23: 38382.43081 | Q23: 2913286.631 | R23: 0.1349
C24: =C23*(C8-C10) -> 29700 | K24: 18 | L24: 18 | M24: 2023-08-18 | N24: 5632.233604 | O24: 32750.1972 | P24: 38382.43081 | Q24: 2907654.397 | R24: 0.1349
K25: 19 | L25: 19 | M25: 2023-09-18 | N25: 5695.549297 | O25: 32686.88151 | P25: 38382.43081 | Q25: 2901958.848 | R25: 0.1349
B26: Схема погашення (ануїтет / стандарт) | C26: Ануїтет | K26: 20 | L26: 20 | M26: 2023-10-18 | N26: 5759.576764 | O26: 32622.85405 | P26: 38382.43081 | Q26: 2896199.271 | R26: 0.1349
K27: 21 | L27: 21 | M27: 2023-11-18 | N27: 5824.324006 | O27: 32558.1068 | P27: 38382.43081 | Q27: 2890374.947 | R27: 0.1349
B28: *Комірки залиті даним кольором доступні до редагування | K28: 22 | L28: 22 | M28: 2023-12-18 | N28: 5889.799115 | O28: 32492.63169 | P28: 38382.43081 | Q28: 2884485.148 | R28: 0.1349
B29: У файлі присутні макроси, для коректного розрахунку прохання перевірити їх доступність: | K29: 23 | L29: 23 | M29: 2024-01-18 | N29: 5956.010273 | O29: 32426.42054 | P29: 38382.43081 | Q29: 2878529.137 | R29: 0.1349
B30: "Файл" - "Параметры" - "Центр управления безопасностью" - "Параметры центра управления безопасностью" - "Параметры макросов" - "Включить все макросы" | K30: 24 | L30: 24 | M30: 2024-02-18 | N30: 6022.965756 | O30: 32359.46505 | P30: 38382.43081 | Q30: 2872506.172 | R30: 0.1349
B31: Перезапустіть Excel (повністю його закривши, і відкривши знову), щоб зміни вступили в силу. | K31: 25 | L31: 25 | M31: 2024-03-18 | N31: 6090.673929 | O31: 32291.75688 | P31: =IF(M31="","", IF($C$26="Стандарт",N31+O31+IF(MOD(L31,12)=1,$G$8+$G$10,0),$L$4+IF(MOD(L31,12)=1,$G$8+$G$10,0) )) -> 51239.57368 | Q31: 2866415.498 | R31: 0.1349
K32: 26 | L32: 26 | M32: 2024-04-18 | N32: 6159.143255 | O32: 32223.28755 | P32: 38382.43081 | Q32: 2860256.355 | R32: 0.1349
B33: **Сума розрахунків є орієнтовною, конкретні умови кредитування будуть вказані в паспорті споживчого кредиту | K33: 27 | L33: 27 | M33: 2024-05-18 | N33: 6228.38229 | O33: 32154.04852 | P33: 38382.43081 | Q33: 2854027.972 | R33: 0.1349
B34: Строк пільгового періода, міс | C34: =IF(C14>36,36,C14) -> 36 | K34: 28 | L34: 28 | M34: 2024-06-18 | N34: 6298.399688 | O34: 32084.03112 | P34: 38382.43081 | Q34: 2847729.573 | R34: 0.1349
K35: 29 | L35: 29 | M35: 2024-07-18 | N35: 6369.204198 | O35: 32013.22661 | P35: 38382.43081 | Q35: 2841360.368 | R35: 0.1349
K36: 30 | L36: 30 | M36: 2024-08-18 | N36: 6440.804668 | O36: 31941.62614 | P36: 38382.43081 | Q36: 2834919.564 | R36: 0.1349
K37: 31 | L37: 31 | M37: 2024-09-18 | N37: 6513.210047 | O37: 31869.22076 | P37: 38382.43081 | Q37: 2828406.354 | R37: 0.1349
K38: 32 | L38: 32 | M38: 2024-10-18 | N38: 6586.429384 | O38: 31796.00143 | P38: 38382.43081 | Q38: 2821819.924 | R38: 0.1349
K39: 33 | L39: =IF(K39>$C$14,"",K39) -> 33 | M39: =IF(L39<=$C$14,EDATE($M$6,L39),"") -> 2024-11-18 | N39: 6660.471827 | O39: =IF(L39<=$C$14,Q38*R39/12,"") -> 31721.95898 | P39: 38382.43081 | Q39: =IF(M39="","",Q38-N39) -> 2815159.452 | R39: =IF(L39>$C$14,"", IF(L39>$C$34,$C$18,$C$16)) -> 0.1349
K40: 34 | L40: 34 | M40: 2024-12-18 | N40: =IF(M40="","", IF($C$26="Стандарт",$C$12/$C$14,P40-IF(MOD(L40,12)=1,$G$8+$G$10,0)-O40)) -> 6735.346632 | O40: 31647.08418 | P40: =IF(M40="","", IF($C$26="Стандарт",N40+O40+IF(MOD(L40,12)=1,$G$8+$G$10,0),$L$4+IF(MOD(L40,12)=1,$G$8+$G$10,0) )) -> 38382.43081 | Q40: 2808424.106 | R40: 0.1349
K41: 35 | L41: 35 | M41: 2025-01-18 | N41: 6811.063153 | O41: 31571.36766 | P41: 38382.43081 | Q41: 2801613.043 | R41: 0.1349
K42: 36 | L42: 36 | M42: 2025-02-18 | N42: 6887.630855 | O42: 31494.79995 | P42: 38382.43081 | Q42: 2794725.412 | R42: 0.1349
K43: 37 | L43: 37 | M43: 2025-03-18 | N43: 8152.817605 | O43: 30229.6132 | P43: 51239.57368 | Q43: 2786572.594 | R43: 0.1298
K44: 38 | L44: 38 | M44: 2025-04-18 | N44: 8241.003916 | O44: 30141.42689 | P44: 38382.43081 | Q44: 2778331.59 | R44: 0.1298
K45: 39 | L45: 39 | M45: 2025-05-18 | N45: 8330.144108 | O45: 30052.2867 | P45: 38382.43081 | Q45: 2770001.446 | R45: 0.1298
K46: 40 | L46: 40 | M46: 2025-06-18 | N46: 8420.2485 | O46: 29962.18231 | P46: 38382.43081 | Q46: 2761581.198 | R46: 0.1298
K47: 41 | L47: 41 | M47: 2025-07-18 | N47: 8511.327521 | O47: 29871.10329 | P47: 38382.43081 | Q47: 2753069.87 | R47: 0.1298
K48: 42 | L48: 42 | M48: 2025-08-18 | N48: 8603.391714 | O48: 29779.0391 | P48: 38382.43081 | Q48: 2744466.478 | R48: 0.1298
K49: 43 | L49: 43 | M49: 2025-09-18 | N49: 8696.451734 | O49: 29685.97908 | P49: 38382.43081 | Q49: 2735770.027 | R49: 0.1298
K50: 44 | L50: 44 | M50: 2025-10-18 | N50: 8790.518354 | O50: 29591.91246 | P50: 38382.43081 | Q50: 2726979.508 | R50: 0.1298
K51: 45 | L51: 45 | M51: 2025-11-18 | N51: 8885.602461 | O51: 29496.82835 | P51: 38382.43081 | Q51: 2718093.906 | R51: 0.1298
K52: 46 | L52: 46 | M52: 2025-12-18 | N52: 8981.715061 | O52: 29400.71575 | P52: 38382.43081 | Q52: 2709112.191 | R52: 0.1298
K53: 47 | L53: 47 | M53: 2026-01-18 | N53: 9078.867279 | O53: 29303.56353 | P53: 38382.43081 | Q53: 2700033.324 | R53: 0.1298
K54: 48 | L54: 48 | M54: 2026-02-18 | N54: 9177.07036 | O54: 29205.36045 | P54: 38382.43081 | Q54: 2690856.253 | R54: 0.1298
K55: 49 | L55: 49 | M55: 2026-03-18 | N55: 9276.335671 | O55: 29106.09514 | P55: 51239.57368 | Q55: 2681579.918 | R55: 0.1298
K56: 50 | L56: 50 | M56: 2026-04-18 | N56: 9376.674702 | O56: 29005.75611 | P56: 38382.43081 | Q56: 2672203.243 | R56: 0.1298
K57: 51 | L57: 51 | M57: 2026-05-18 | N57: 9478.099066 | O57: 28904.33174 | P57: 38382.43081 | Q57: 2662725.144 | R57: 0.1298
K58: 52 | L58: 52 | M58: 2026-06-18 | N58: 9580.620505 | O58: 28801.8103 | P58: 38382.43081 | Q58: 2653144.523 | R58: 0.1298
K59: 53 | L59: 53 | M59: 2026-07-18 | N59: 9684.250883 | O59: 28698.17993 | P59: 38382.43081 | Q59: 2643460.272 | R59: 0.1298
K60: 54 | L60: 54 | M60: 2026-08-18 | N60: 9789.002197 | O60: 28593.42861 | P60: 38382.43081 | Q60: 2633671.27 | R60: 0.1298
K61: 55 | L61: 55 | M61: 2026-09-18 | N61: 9894.88657 | O61: 28487.54424 | P61: 38382.43081 | Q61: 2623776.384 | R61: 0.1298
K62: 56 | L62: 56 | M62: 2026-10-18 | N62: 10001.91626 | O62: 28380.51455 | P62: 38382.43081 | Q62: 2613774.467 | R62: 0.1298
K63: 57 | L63: 57 | M63: 2026-11-18 | N63: 10110.10365 | O63: 28272.32715 | P63: 38382.43081 | Q63: 2603664.364 | R63: 0.1298
K64: 58 | L64: 58 | M64: 2026-12-18 | N64: 10219.46128 | O64: 28162.96953 | P64: 38382.43081 | Q64: 2593444.902 | R64: 0.1298
K65: 59 | L65: 59 | M65: 2027-01-18 | N65: 10330.00178 | O65: 28052.42903 | P65: 38382.43081 | Q65: 2583114.901 | R65: 0.1298
K66: 60 | L66: 60 | M66: 2027-02-18 | N66: 10441.73797 | O66: 27940.69284 | P66: 38382.43081 | Q66: 2572673.163 | R66: 0.1298
K67: 61 | L67: 61 | M67: 2027-03-18 | N67: 10554.68277 | O67: 27827.74804 | P67: 51239.57368 | Q67: 2562118.48 | R67: 0.1298
K68: 62 | L68: 62 | M68: 2027-04-18 | N68: 10668.84925 | O68: 27713.58156 | P68: 38382.43081 | Q68: 2551449.631 | R68: 0.1298
K69: 63 | L69: 63 | M69: 2027-05-18 | N69: 10784.25064 | O69: 27598.18017 | P69: 38382.43081 | Q69: 2540665.38 | R69: 0.1298
K70: 64 | L70: 64 | M70: 2027-06-18 | N70: 10900.90028 | O70: 27481.53053 | P70: 38382.43081 | Q70: 2529764.48 | R70: 0.1298
K71: 65 | L71: =IF(K71>$C$14,"",K71) -> 65 | M71: =IF(L71<=$C$14,EDATE($M$6,L71),"") -> 2027-07-18 | N71: 11018.81169 | O71: =IF(L71<=$C$14,Q70*R71/12,"") -> 27363.61912 | P71: 38382.43081 | Q71: =IF(M71="","",Q70-N71) -> 2518745.668 | R71: =IF(L71>$C$14,"", IF(L71>$C$34,$C$18,$C$16)) -> 0.1298
K72: 66 | L72: 66 | M72: 2027-08-18 | N72: =IF(M72="","", IF($C$26="Стандарт",$C$12/$C$14,P72-IF(MOD(L72,12)=1,$G$8+$G$10,0)-O72)) -> 11137.9985 | O72: 27244.43231 | P72: =IF(M72="","", IF($C$26="Стандарт",N72+O72+IF(MOD(L72,12)=1,$G$8+$G$10,0),$L$4+IF(MOD(L72,12)=1,$G$8+$G$10,0) )) -> 38382.43081 | Q72: 2507607.67 | R72: 0.1298
K73: 67 | L73: 67 | M73: 2027-09-18 | N73: 11258.47452 | O73: 27123.95629 | P73: 38382.43081 | Q73: 2496349.195 | R73: 0.1298
K74: 68 | L74: 68 | M74: 2027-10-18 | N74: 11380.25368 | O74: 27002.17713 | P74: 38382.43081 | Q74: 2484968.941 | R74: 0.1298
K75: 69 | L75: 69 | M75: 2027-11-18 | N75: 11503.35009 | O75: 26879.08072 | P75: 38382.43081 | Q75: 2473465.591 | R75: 0.1298
K76: 70 | L76: 70 | M76: 2027-12-18 | N76: 11627.778 | O76: 26754.65281 | P76: 38382.43081 | Q76: 2461837.813 | R76: 0.1298
K77: 71 | L77: 71 | M77: 2028-01-18 | N77: 11753.5518 | O77: 26628.87901 | P77: 38382.43081 | Q77: 2450084.261 | R77: 0.1298
K78: 72 | L78: 72 | M78: 2028-02-18 | N78: 11880.68605 | O78: 26501.74476 | P78: 38382.43081 | Q78: 2438203.575 | R78: 0.1298
K79: 73 | L79: 73 | M79: 2028-03-18 | N79: 12009.19547 | O79: 26373.23534 | P79: 51239.57368 | Q79: 2426194.38 | R79: 0.1298
K80: 74 | L80: 74 | M80: 2028-04-18 | N80: 12139.09493 | O80: 26243.33588 | P80: 38382.43081 | Q80: 2414055.285 | R80: 0.1298
K81: 75 | L81: 75 | M81: 2028-05-18 | N81: 12270.39948 | O81: 26112.03133 | P81: 38382.43081 | Q81: 2401784.886 | R81: 0.1298
K82: 76 | L82: 76 | M82: 2028-06-18 | N82: 12403.1243 | O82: 25979.30651 | P82: 38382.43081 | Q82: 2389381.761 | R82: 0.1298
K83: 77 | L83: 77 | M83: 2028-07-18 | N83: 12537.28476 | O83: 25845.14605 | P83: 38382.43081 | Q83: 2376844.476 | R83: 0.1298
K84: 78 | L84: 78 | M84: 2028-08-18 | N84: 12672.89639 | O84: 25709.53442 | P84: 38382.43081 | Q84: 2364171.58 | R84: 0.1298
K85: 79 | L85: 79 | M85: 2028-09-18 | N85: 12809.97489 | O85: 25572.45592 | P85: 38382.43081 | Q85: 2351361.605 | R85: 0.1298
K86: 80 | L86: 80 | M86: 2028-10-18 | N86: 12948.53611 | O86: 25433.8947 | P86: 38382.43081 | Q86: 2338413.069 | R86: 0.1298
K87: 81 | L87: 81 | M87: 2028-11-18 | N87: 13088.59611 | O87: 25293.8347 | P87: 38382.43081 | Q87: 2325324.473 | R87: 0.1298
K88: 82 | L88: 82 | M88: 2028-12-18 | N88: 13230.17109 | O88: 25152.25972 | P88: 38382.43081 | Q88: 2312094.302 | R88: 0.1298
K89: 83 | L89: 83 | M89: 2029-01-18 | N89: 13373.27744 | O89: 25009.15337 | P89: 38382.43081 | Q89: 2298721.024 | R89: 0.1298
K90: 84 | L90: 84 | M90: 2029-02-18 | N90: 13517.93173 | O90: 24864.49908 | P90: 38382.43081 | Q90: 2285203.093 | R90: 0.1298
K91: 85 | L91: 85 | M91: 2029-03-18 | N91: 13664.15069 | O91: 24718.28012 | P91: 51239.57368 | Q91: 2271538.942 | R91: 0.1298
K92: 86 | L92: 86 | M92: 2029-04-18 | N92: 13811.95125 | O92: 24570.47956 | P92: 38382.43081 | Q92: 2257726.991 | R92: 0.1298
K93: 87 | L93: 87 | M93: 2029-05-18 | N93: 13961.35053 | O93: 24421.08028 | P93: 38382.43081 | Q93: 2243765.64 | R93: 0.1298
K94: 88 | L94: 88 | M94: 2029-06-18 | N94: 14112.3658 | O94: 24270.06501 | P94: 38382.43081 | Q94: 2229653.274 | R94: 0.1298
K95: 89 | L95: 89 | M95: 2029-07-18 | N95: 14265.01456 | O95: 24117.41625 | P95: 38382.43081 | Q95: 2215388.26 | R95: 0.1298
K96: 90 | L96: 90 | M96: 2029-08-18 | N96: 14419.31447 | O96: 23963.11634 | P96: 38382.43081 | Q96: 2200968.945 | R96: 0.1298
K97: 91 | L97: 91 | M97: 2029-09-18 | N97: 14575.28338 | O97: 23807.14743 | P97: 38382.43081 | Q97: 2186393.662 | R97: 0.1298
K98: 92 | L98: 92 | M98: 2029-10-18 | N98: 14732.93937 | O98: 23649.49144 | P98: 38382.43081 | Q98: 2171660.723 | R98: 0.1298
K99: 93 | L99: 93 | M99: 2029-11-18 | N99: 14892.30066 | O99: 23490.13015 | P99: 38382.43081 | Q99: 2156768.422 | R99: 0.1298
K100: 94 | L100: 94 | M100: 2029-12-18 | N100: 15053.38571 | O100: 23329.0451 | P100: 38382.43081 | Q100: 2141715.036 | R100: 0.1298
K101: 95 | L101: 95 | M101: 2030-01-18 | N101: 15216.21317 | O101: 23166.21764 | P101: 38382.43081 | Q101: 2126498.823 | R101: 0.1298
K102: 96 | L102: 96 | M102: 2030-02-18 | N102: 15380.80187 | O102: 23001.62894 | P102: 38382.43081 | Q102: 2111118.021 | R102: 0.1298
K103: 97 | L103: =IF(K103>$C$14,"",K103) -> 97 | M103: =IF(L103<=$C$14,EDATE($M$6,L103),"") -> 2030-03-18 | N103: 15547.17088 | O103: =IF(L103<=$C$14,Q102*R103/12,"") -> 22835.25993 | P103: 51239.57368 | Q103: =IF(M103="","",Q102-N103) -> 2095570.85 | R103: =IF(L103>$C$14,"", IF(L103>$C$34,$C$18,$C$16)) -> 0.1298
K104: 98 | L104: 98 | M104: 2030-04-18 | N104: =IF(M104="","", IF($C$26="Стандарт",$C$12/$C$14,P104-IF(MOD(L104,12)=1,$G$8+$G$10,0)-O104)) -> 15715.33944 | O104: 22667.09136 | P104: =IF(M104="","", IF($C$26="Стандарт",N104+O104+IF(MOD(L104,12)=1,$G$8+$G$10,0),$L$4+IF(MOD(L104,12)=1,$G$8+$G$10,0) )) -> 38382.43081 | Q104: 2079855.511 | R104: 0.1298
K105: 99 | L105: 99 | M105: 2030-05-18 | N105: 15885.32703 | O105: 22497.10378 | P105: 38382.43081 | Q105: 2063970.184 | R105: 0.1298
K106: 100 | L106: 100 | M106: 2030-06-18 | N106: 16057.15332 | O106: 22325.27749 | P106: 38382.43081 | Q106: 2047913.031 | R106: 0.1298
K107: 101 | L107: 101 | M107: 2030-07-18 | N107: 16230.8382 | O107: 22151.59261 | P107: 38382.43081 | Q107: 2031682.192 | R107: 0.1298
K108: 102 | L108: 102 | M108: 2030-08-18 | N108: 16406.40176 | O108: 21976.02905 | P108: 38382.43081 | Q108: 2015275.791 | R108: 0.1298
K109: 103 | L109: 103 | M109: 2030-09-18 | N109: 16583.86434 | O109: 21798.56647 | P109: 38382.43081 | Q109: 1998691.926 | R109: 0.1298
K110: 104 | L110: 104 | M110: 2030-10-18 | N110: 16763.24647 | O110: 21619.18434 | P110: 38382.43081 | Q110: 1981928.68 | R110: 0.1298
K111: 105 | L111: 105 | M111: 2030-11-18 | N111: 16944.56892 | O111: 21437.86189 | P111: 38382.43081 | Q111: 1964984.111 | R111: 0.1298
K112: 106 | L112: 106 | M112: 2030-12-18 | N112: 17127.85268 | O112: 21254.57813 | P112: 38382.43081 | Q112: 1947856.258 | R112: 0.1298
K113: 107 | L113: 107 | M113: 2031-01-18 | N113: 17313.11895 | O113: 21069.31186 | P113: 38382.43081 | Q113: 1930543.139 | R113: 0.1298
K114: 108 | L114: 108 | M114: 2031-02-18 | N114: 17500.38919 | O114: 20882.04162 | P114: 38382.43081 | Q114: 1913042.75 | R114: 0.1298
K115: 109 | L115: 109 | M115: 2031-03-18 | N115: 17689.68506 | O115: 20692.74575 | P115: 51239.57368 | Q115: 1895353.065 | R115: 0.1298
K116: 110 | L116: 110 | M116: 2031-04-18 | N116: 17881.02849 | O116: 20501.40232 | P116: 38382.43081 | Q116: 1877472.036 | R116: 0.1298
K117: 111 | L117: 111 | M117: 2031-05-18 | N117: 18074.44161 | O117: 20307.98919 | P117: 38382.43081 | Q117: 1859397.595 | R117: 0.1298
K118: 112 | L118: 112 | M118: 2031-06-18 | N118: 18269.94682 | O118: 20112.48398 | P118: 38382.43081 | Q118: 1841127.648 | R118: 0.1298
K119: 113 | L119: 113 | M119: 2031-07-18 | N119: 18467.56675 | O119: 19914.86406 | P119: 38382.43081 | Q119: 1822660.081 | R119: 0.1298
K120: 114 | L120: 114 | M120: 2031-08-18 | N120: 18667.32426 | O120: 19715.10655 | P120: 38382.43081 | Q120: 1803992.757 | R120: 0.1298
K121: 115 | L121: 115 | M121: 2031-09-18 | N121: 18869.24249 | O121: 19513.18832 | P121: 38382.43081 | Q121: 1785123.515 | R121: 0.1298
K122: 116 | L122: 116 | M122: 2031-10-18 | N122: 19073.34479 | O122: 19309.08602 | P122: 38382.43081 | Q122: 1766050.17 | R122: 0.1298
K123: 117 | L123: 117 | M123: 2031-11-18 | N123: 19279.65481 | O123: 19102.776 | P123: 38382.43081 | Q123: 1746770.515 | R123: 0.1298
K124: 118 | L124: 118 | M124: 2031-12-18 | N124: 19488.19641 | O124: 18894.2344 | P124: 38382.43081 | Q124: 1727282.319 | R124: 0.1298
K125: 119 | L125: 119 | M125: 2032-01-18 | N125: 19698.99373 | O125: 18683.43708 | P125: 38382.43081 | Q125: 1707583.325 | R125: 0.1298
K126: 120 | L126: 120 | M126: 2032-02-18 | N126: 19912.07118 | O126: 18470.35963 | P126: 38382.43081 | Q126: 1687671.254 | R126: 0.1298
K127: 121 | L127: 121 | M127: 2032-03-18 | N127: 20127.45342 | O127: 18254.97739 | P127: 51239.57368 | Q127: 1667543.8 | R127: 0.1298
K128: 122 | L128: 122 | M128: 2032-04-18 | N128: 20345.16537 | O128: 18037.26544 | P128: 38382.43081 | Q128: 1647198.635 | R128: 0.1298
K129: 123 | L129: 123 | M129: 2032-05-18 | N129: 20565.23224 | O129: 17817.19857 | P129: 38382.43081 | Q129: 1626633.403 | R129: 0.1298
K130: 124 | L130: 124 | M130: 2032-06-18 | N130: 20787.6795 | O130: 17594.7513 | P130: 38382.43081 | Q130: 1605845.723 | R130: 0.1298
K131: 125 | L131: 125 | M131: 2032-07-18 | N131: 21012.5329 | O131: 17369.8979 | P131: 38382.43081 | Q131: 1584833.19 | R131: 0.1298
K132: 126 | L132: 126 | M132: 2032-08-18 | N132: 21239.81847 | O132: 17142.61234 | P132: 38382.43081 | Q132: 1563593.372 | R132: 0.1298
K133: 127 | L133: 127 | M133: 2032-09-18 | N133: 21469.56251 | O133: 16912.8683 | P133: 38382.43081 | Q133: 1542123.809 | R133: 0.1298
K134: 128 | L134: 128 | M134: 2032-10-18 | N134: 21701.79161 | O134: 16680.6392 | P134: 38382.43081 | Q134: 1520422.018 | R134: 0.1298
K135: 129 | L135: =IF(K135>$C$14,"",K135) -> 129 | M135: =IF(L135<=$C$14,EDATE($M$6,L135),"") -> 2032-11-18 | N135: 21936.53265 | O135: =IF(L135<=$C$14,Q134*R135/12,"") -> 16445.89816 | P135: 38382.43081 | Q135: =IF(M135="","",Q134-N135) -> 1498485.485 | R135: =IF(L135>$C$14,"", IF(L135>$C$34,$C$18,$C$16)) -> 0.1298
K136: 130 | L136: 130 | M136: 2032-12-18 | N136: =IF(M136="","", IF($C$26="Стандарт",$C$12/$C$14,P136-IF(MOD(L136,12)=1,$G$8+$G$10,0)-O136)) -> 22173.81281 | O136: 16208.618 | P136: =IF(M136="","", IF($C$26="Стандарт",N136+O136+IF(MOD(L136,12)=1,$G$8+$G$10,0),$L$4+IF(MOD(L136,12)=1,$G$8+$G$10,0) )) -> 38382.43081 | Q136: 1476311.672 | R136: 0.1298
K137: 131 | L137: 131 | M137: 2033-01-18 | N137: 22413.65956 | O137: 15968.77125 | P137: 38382.43081 | Q137: 1453898.013 | R137: 0.1298
K138: 132 | L138: 132 | M138: 2033-02-18 | N138: 22656.10064 | O138: 15726.33017 | P138: 38382.43081 | Q138: 1431241.912 | R138: 0.1298
K139: 133 | L139: 133 | M139: 2033-03-18 | N139: 22901.16413 | O139: 15481.26668 | P139: 51239.57368 | Q139: 1408340.748 | R139: 0.1298
K140: 134 | L140: 134 | M140: 2033-04-18 | N140: 23148.87839 | O140: 15233.55242 | P140: 38382.43081 | Q140: 1385191.869 | R140: 0.1298
K141: 135 | L141: 135 | M141: 2033-05-18 | N141: 23399.27209 | O141: 14983.15872 | P141: 38382.43081 | Q141: 1361792.597 | R141: 0.1298
K142: 136 | L142: 136 | M142: 2033-06-18 | N142: 23652.37421 | O142: 14730.05659 | P142: 38382.43081 | Q142: 1338140.223 | R142: 0.1298
K143: 137 | L143: 137 | M143: 2033-07-18 | N143: 23908.21406 | O143: 14474.21675 | P143: 38382.43081 | Q143: 1314232.009 | R143: 0.1298
K144: 138 | L144: 138 | M144: 2033-08-18 | N144: 24166.82124 | O144: 14215.60956 | P144: 38382.43081 | Q144: 1290065.188 | R144: 0.1298
K145: 139 | L145: 139 | M145: 2033-09-18 | N145: 24428.22569 | O145: 13954.20512 | P145: 38382.43081 | Q145: 1265636.962 | R145: 0.1298
K146: 140 | L146: 140 | M146: 2033-10-18 | N146: 24692.45767 | O146: 13689.97314 | P146: 38382.43081 | Q146: 1240944.504 | R146: 0.1298
K147: 141 | L147: 141 | M147: 2033-11-18 | N147: 24959.54775 | O147: 13422.88306 | P147: 38382.43081 | Q147: 1215984.957 | R147: 0.1298
K148: 142 | L148: 142 | M148: 2033-12-18 | N148: 25229.52686 | O148: 13152.90395 | P148: 38382.43081 | Q148: 1190755.43 | R148: 0.1298
K149: 143 | L149: 143 | M149: 2034-01-18 | N149: 25502.42624 | O149: 12880.00457 | P149: 38382.43081 | Q149: 1165253.004 | R149: 0.1298
K150: 144 | L150: 144 | M150: 2034-02-18 | N150: 25778.27749 | O150: 12604.15332 | P150: 38382.43081 | Q150: 1139474.726 | R150: 0.1298
K151: 145 | L151: 145 | M151: 2034-03-18 | N151: 26057.11252 | O151: 12325.31829 | P151: 51239.57368 | Q151: 1113417.614 | R151: 0.1298
K152: 146 | L152: 146 | M152: 2034-04-18 | N152: 26338.96362 | O152: 12043.46719 | P152: 38382.43081 | Q152: 1087078.65 | R152: 0.1298
K153: 147 | L153: 147 | M153: 2034-05-18 | N153: 26623.86341 | O153: 11758.5674 | P153: 38382.43081 | Q153: 1060454.787 | R153: 0.1298
K154: 148 | L154: 148 | M154: 2034-06-18 | N154: 26911.84487 | O154: 11470.58594 | P154: 38382.43081 | Q154: 1033542.942 | R154: 0.1298
K155: 149 | L155: 149 | M155: 2034-07-18 | N155: 27202.94132 | O155: 11179.48949 | P155: 38382.43081 | Q155: 1006340 | R155: 0.1298
K156: 150 | L156: 150 | M156: 2034-08-18 | N156: 27497.18647 | O156: 10885.24434 | P156: 38382.43081 | Q156: 978842.8139 | R156: 0.1298
K157: 151 | L157: 151 | M157: 2034-09-18 | N157: 27794.61437 | O157: 10587.81644 | P157: 38382.43081 | Q157: 951048.1995 | R157: 0.1298
K158: 152 | L158: 152 | M158: 2034-10-18 | N158: 28095.25945 | O158: 10287.17136 | P158: 38382.43081 | Q158: 922952.9401 | R158: 0.1298
K159: 153 | L159: 153 | M159: 2034-11-18 | N159: 28399.15651 | O159: 9983.274302 | P159: 38382.43081 | Q159: 894553.7836 | R159: 0.1298
K160: 154 | L160: 154 | M160: 2034-12-18 | N160: 28706.34072 | O160: 9676.090092 | P160: 38382.43081 | Q160: 865847.4429 | R160: 0.1298
K161: 155 | L161: 155 | M161: 2035-01-18 | N161: 29016.84764 | O161: 9365.583174 | P161: 38382.43081 | Q161: 836830.5952 | R161: 0.1298
K162: 156 | L162: 156 | M162: 2035-02-18 | N162: 29330.7132 | O162: 9051.717605 | P162: 38382.43081 | Q162: 807499.882 | R162: 0.1298
K163: 157 | L163: 157 | M163: 2035-03-18 | N163: 29647.97375 | O163: 8734.457057 | P163: 51239.57368 | Q163: 777851.9083 | R163: 0.1298
K164: 158 | L164: 158 | M164: 2035-04-18 | N164: 29968.666 | O164: 8413.764808 | P164: 38382.43081 | Q164: 747883.2423 | R164: 0.1298
K165: 159 | L165: 159 | M165: 2035-05-18 | N165: 30292.82707 | O165: 8089.603737 | P165: 38382.43081 | Q165: 717590.4152 | R165: 0.1298
K166: 160 | L166: 160 | M166: 2035-06-18 | N166: 30620.49448 | O166: 7761.936324 | P166: 38382.43081 | Q166: 686969.9207 | R166: 0.1298
K167: 161 | L167: =IF(K167>$C$14,"",K167) -> 161 | M167: =IF(L167<=$C$14,EDATE($M$6,L167),"") -> 2035-07-18 | N167: 30951.70617 | O167: =IF(L167<=$C$14,Q166*R167/12,"") -> 7430.724642 | P167: 38382.43081 | Q167: =IF(M167="","",Q166-N167) -> 656018.2145 | R167: =IF(L167>$C$14,"", IF(L167>$C$34,$C$18,$C$16)) -> 0.1298
K168: 162 | L168: 162 | M168: 2035-08-18 | N168: =IF(M168="","", IF($C$26="Стандарт",$C$12/$C$14,P168-IF(MOD(L168,12)=1,$G$8+$G$10,0)-O168)) -> 31286.50046 | O168: 7095.930354 | P168: =IF(M168="","", IF($C$26="Стандарт",N168+O168+IF(MOD(L168,12)=1,$G$8+$G$10,0),$L$4+IF(MOD(L168,12)=1,$G$8+$G$10,0) )) -> 38382.43081 | Q168: 624731.7141 | R168: 0.1298
K169: 163 | L169: 163 | M169: 2035-09-18 | N169: 31624.9161 | O169: 6757.514707 | P169: 38382.43081 | Q169: 593106.798 | R169: 0.1298
K170: 164 | L170: 164 | M170: 2035-10-18 | N170: 31966.99228 | O170: 6415.438532 | P170: 38382.43081 | Q170: 561139.8057 | R170: 0.1298
K171: 165 | L171: 165 | M171: 2035-11-18 | N171: 32312.76858 | O171: 6069.662232 | P171: 38382.43081 | Q171: 528827.0371 | R171: 0.1298
K172: 166 | L172: 166 | M172: 2035-12-18 | N172: 32662.28502 | O172: 5720.145785 | P172: 38382.43081 | Q172: 496164.7521 | R172: 0.1298
K173: 167 | L173: 167 | M173: 2036-01-18 | N173: 33015.58207 | O173: 5366.848735 | P173: 38382.43081 | Q173: 463149.17 | R173: 0.1298
K174: 168 | L174: 168 | M174: 2036-02-18 | N174: 33372.70062 | O174: 5009.730189 | P174: 38382.43081 | Q174: 429776.4694 | R174: 0.1298
K175: 169 | L175: 169 | M175: 2036-03-18 | N175: 33733.682 | O175: 4648.748811 | P175: 51239.57368 | Q175: 396042.7874 | R175: 0.1298
K176: 170 | L176: 170 | M176: 2036-04-18 | N176: 34098.56799 | O176: 4283.862817 | P176: 38382.43081 | Q176: 361944.2194 | R176: 0.1298
K177: 171 | L177: 171 | M177: 2036-05-18 | N177: 34467.40084 | O177: 3915.029973 | P177: 38382.43081 | Q177: 327476.8186 | R177: 0.1298
K178: 172 | L178: 172 | M178: 2036-06-18 | N178: 34840.22322 | O178: 3542.207588 | P178: 38382.43081 | Q178: 292636.5954 | R178: 0.1298
K179: 173 | L179: 173 | M179: 2036-07-18 | N179: 35217.0783 | O179: 3165.352506 | P179: 38382.43081 | Q179: 257419.5171 | R179: 0.1298
K180: 174 | L180: 174 | M180: 2036-08-18 | N180: 35598.0097 | O180: 2784.42111 | P180: 38382.43081 | Q180: 221821.5074 | R180: 0.1298
K181: 175 | L181: 175 | M181: 2036-09-18 | N181: 35983.0615 | O181: 2399.369305 | P181: 38382.43081 | Q181: 185838.4459 | R181: 0.1298
K182: 176 | L182: 176 | M182: 2036-10-18 | N182: 36372.27829 | O182: 2010.152523 | P182: 38382.43081 | Q182: 149466.1676 | R182: 0.1298
K183: 177 | L183: 177 | M183: 2036-11-18 | N183: 36765.7051 | O183: 1616.725713 | P183: 38382.43081 | Q183: 112700.4625 | R183: 0.1298
K184: 178 | L184: 178 | M184: 2036-12-18 | N184: 37163.38747 | O184: 1219.043336 | P184: 38382.43081 | Q184: 75537.075 | R184: 0.1298
K185: 179 | L185: 179 | M185: 2037-01-18 | N185: 37565.37145 | O185: 817.0593612 | P185: 38382.43081 | Q185: 37971.70355 | R185: 0.1298
K186: 180 | L186: 180 | M186: 2037-02-18 | N186: 37971.70355 | O186: 410.7272601 | P186: 38382.43081 | Q186: -3.53102223e-08 | R186: 0.1298
